[Event "*** Titled Tuesday Blitz"]
[Site "Chess.com"]
[Date "2018.11.06"]
[Round "8"]
[White "Alopekos"]
[Black "Vuk2000"]
[Result "1/2-1/2"]
[WhiteElo "2493"]
[BlackElo "2674"]
[TimeControl "180+2"]
[EndTime "14:54:01 PST"]
[Termination "Game drawn by agreement"]

1. e4 {[%clk 0:03:01.9]} 1... e6 {[%clk 0:03:01.2]} 2. d4 {[%clk 0:03:02]} 2...
d5 {[%clk 0:03:02.5]} 3. Nc3 {[%clk 0:03:02.7]} 3... Bb4 {[%clk 0:03:03.9]} 4.
e5 {[%clk 0:03:01.9]} 4... c5 {[%clk 0:03:05]} 5. a3 {[%clk 0:03:01.6]} 5...
Bxc3+ {[%clk 0:03:06.2]} 6. bxc3 {[%clk 0:03:03.5]} 6... Ne7 {[%clk 0:03:07.4]}
7. Qg4 {[%clk 0:03:04.5]} 7... Qc7 {[%clk 0:03:08.1]} 8. Qxg7 {[%clk 0:03:05.2]}
8... Rg8 {[%clk 0:03:09.1]} 9. Qxh7 {[%clk 0:03:06.6]} 9... cxd4 {[%clk
0:03:10]} 10. Ne2 {[%clk 0:03:07.1]} 10... Nbc6 {[%clk 0:03:10.4]} 11. f4 {[%clk
0:03:08.1]} 11... Bd7 {[%clk 0:03:09.8]} 12. Rg1 {[%clk 0:03:08.9]} 12... dxc3
{[%clk 0:03:08.4]} 13. g4 {[%clk 0:03:07.2]} 13... O-O-O {[%clk 0:03:07.4]} 14.
Qd3 {[%clk 0:03:06.7]} 14... d4 {[%clk 0:02:28.5]} 15. h4 {[%clk 0:03:06]} 15...
Qb6 {[%clk 0:02:04.6]} 16. h5 {[%clk 0:02:51.9]} 16... Nd5 {[%clk 0:02:05.5]}
17. Rg3 {[%clk 0:02:51]} 17... f6 {[%clk 0:02:02.2]} 18. exf6 {[%clk 0:02:46.3]}
18... Nxf6 {[%clk 0:01:53.1]} 19. Bh3 {[%clk 0:02:41.3]} 19... e5 {[%clk
0:01:54.3]} 20. fxe5 {[%clk 0:02:34.2]} 20... Nxe5 {[%clk 0:01:52.6]} 21. Qxd4
{[%clk 0:02:35.8]} 21... Qxd4 {[%clk 0:01:41.3]} 22. Nxd4 {[%clk 0:02:35.8]}
22... Ne4 {[%clk 0:01:18.3]} 23. Re3 {[%clk 0:02:15]} 23... Bxg4 {[%clk
0:01:11.7]} 24. Rxe4 {[%clk 0:01:19.5]} 24... Bxh3 {[%clk 0:01:11.1]} 25. Be3
{[%clk 0:01:06.8]} 25... Rge8 {[%clk 0:00:50.1]} 26. O-O-O {[%clk 0:01:04.6]}
26... Bg2 {[%clk 0:00:25.4]} 27. Rf4 {[%clk 0:00:26.5]} 27... Nc4 {[%clk
0:00:13.9]} 28. Bf2 {[%clk 0:00:22.6]} 28... Re4 {[%clk 0:00:15]} 29. Rxe4
{[%clk 0:00:18.1]} 29... Bxe4 {[%clk 0:00:16.9]} 30. Re1 {[%clk 0:00:11.1]}
30... Re8 {[%clk 0:00:17.2]} 31. h6 {[%clk 0:00:11.4]} 31... Kd7 {[%clk
0:00:15.5]} 32. Nb5 {[%clk 0:00:09.1]} 32... Bh7 {[%clk 0:00:13.3]} 33. Rxe8
{[%clk 0:00:08.6]} 33... Kxe8 {[%clk 0:00:15.2]} 34. a4 {[%clk 0:00:06.4]} 34...
a6 {[%clk 0:00:10.9]} 35. Nxc3 {[%clk 0:00:07.5]} 35... Nd6 {[%clk 0:00:11.5]}
36. Nd5 {[%clk 0:00:07.4]} 36... Kf7 {[%clk 0:00:11.3]} 37. Be3 {[%clk
0:00:05.6]} 37... Nf5 {[%clk 0:00:12.5]} 38. Bf4 {[%clk 0:00:05.1]} 38... Nd4
{[%clk 0:00:13.5]} 39. Kd2 {[%clk 0:00:04]} 39... Nxc2 {[%clk 0:00:11.9]} 40.
Kc3 {[%clk 0:00:05.2]} 40... Ne1 {[%clk 0:00:12.6]} 41. Kd4 {[%clk 0:00:04.5]}
41... Ng2 {[%clk 0:00:11.8]} 42. Bd2 {[%clk 0:00:04.1]} 42... Nh4 {[%clk
0:00:12.5]} 43. Kc5 {[%clk 0:00:05.4]} 43... Nf3 {[%clk 0:00:10.7]} 44. Bc3
{[%clk 0:00:02.8]} 44... Ke6 {[%clk 0:00:09.3]} 45. Nf4+ {[%clk 0:00:03]} 45...
Kf5 {[%clk 0:00:10]} 46. Nd3 {[%clk 0:00:02.9]} 46... Kg5 {[%clk 0:00:10.7]} 47.
Nb4 {[%clk 0:00:03.1]} 47... Kxh6 {[%clk 0:00:11.3]} 48. Kb6 {[%clk 0:00:04.5]}
48... Be4 {[%clk 0:00:12.5]} 49. Nxa6 {[%clk 0:00:04.2]} 49... bxa6 {[%clk
0:00:10.4]} 50. Kxa6 {[%clk 0:00:06.1]} 50... Kg6 {[%clk 0:00:07.9]} 51. Kb6
{[%clk 0:00:06.2]} 51... Ng1 {[%clk 0:00:07.3]} 52. a5 {[%clk 0:00:07.1]} 52...
Ne2 {[%clk 0:00:09.2]} 53. Bb2 {[%clk 0:00:07.1]} 53... Nf4 {[%clk 0:00:10.1]}
54. a6 {[%clk 0:00:08.5]} 54... Nd3 {[%clk 0:00:11.3]} 55. Bc3 {[%clk
0:00:08.1]} 55... Nf4 {[%clk 0:00:12]} 56. Be5 {[%clk 0:00:06.6]} 56... Nd5+
{[%clk 0:00:10.9]} 57. Kc5 {[%clk 0:00:06.3]} 57... Ne7 {[%clk 0:00:09.4]} 58.
Kb6 {[%clk 0:00:07]} 58... Kf7 {[%clk 0:00:08.9]} 59. Kc7 {[%clk 0:00:07.8]}
59... Ke6 {[%clk 0:00:09.3]} 60. Bh2 {[%clk 0:00:04.4]} 60... Nc6 {[%clk
0:00:09.2]} 61. Bg1 {[%clk 0:00:03.8]} 61... Nb4 {[%clk 0:00:05.9]} 62. a7
{[%clk 0:00:05]} 62... Bd5 {[%clk 0:00:06.1]} 63. Kb8 {[%clk 0:00:02.5]} 63...
Na6+ {[%clk 0:00:07.3]} 64. Kc8 {[%clk 0:00:04]} 64... Bc6 {[%clk 0:00:08.7]}
65. Bh2 {[%clk 0:00:04.6]} 65... Kd5 {[%clk 0:00:10.1]} 66. Kd8 {[%clk
0:00:04.7]} 66... Kc5 {[%clk 0:00:10.9]} 67. Bb8 {[%clk 0:00:06.5]} 67... Kb6
{[%clk 0:00:12.1]} 68. Ke7 {[%clk 0:00:07.8]} 68... Kb7 {[%clk 0:00:13.6]} 69.
Kf6 {[%clk 0:00:09]} 69... Nc5 {[%clk 0:00:14.8]} 70. Ke5 {[%clk 0:00:09.8]}
70... Na6 {[%clk 0:00:14.8]} 71. Kd4 {[%clk 0:00:11.2]} 71... Kc8 {[%clk
0:00:16.1]} 72. Kc4 {[%clk 0:00:12]} 72... Kd7 {[%clk 0:00:17.7]} 73. Kd4 {[%clk
0:00:13.4]} 73... Ke6 {[%clk 0:00:19.2]} 74. Kc4 {[%clk 0:00:14.6]} 74... Kd7
{[%clk 0:00:19.8]} 75. Kd4 {[%clk 0:00:15.9]} 75... Nb4 {[%clk 0:00:20.5]} 76.
Kc5 {[%clk 0:00:16.2]} 76... Nd5 {[%clk 0:00:21.6]} 77. Kd4 {[%clk 0:00:14.9]}
77... Bb7 {[%clk 0:00:22.9]} 78. Kc5 {[%clk 0:00:15.9]} 78... Ba8 {[%clk
0:00:24.4]} 79. Kd4 {[%clk 0:00:17.3]} 79... Kc6 {[%clk 0:00:26.1]} 80. Kc4
{[%clk 0:00:18.5]} 80... Nb6+ {[%clk 0:00:26.8]} 81. Kd4 {[%clk 0:00:19.1]}
81... Nc8 {[%clk 0:00:27.8]} 82. Kc4 {[%clk 0:00:20.2]} 82... Nxa7 {[%clk
0:00:29.7]} 1/2-1/2

[Event "*** Titled Tuesday Blitz"]
[Site "Chess.com"]
[Date "2018.11.06"]
[Round "8"]
[White "PaulfromSPb"]
[Black "bascheyaro"]
[Result "1-0"]
[WhiteElo "2534"]
[BlackElo "2697"]
[TimeControl "180+2"]
[EndTime "14:55:36 PST"]
[Termination "PaulfromSPb won by checkmate"]

1. d4 {[%clk 0:03:01.9]} 1... d5 {[%clk 0:03:00.2]} 2. Bg5 {[%clk 0:03:01.6]}
2... c6 {[%clk 0:03:01.4]} 3. c3 {[%clk 0:03:02.1]} 3... Bf5 {[%clk 0:03:02.5]}
4. Nd2 {[%clk 0:03:00.9]} 4... Nd7 {[%clk 0:03:02.9]} 5. e3 {[%clk 0:03:02.1]}
5... Ngf6 {[%clk 0:03:03.9]} 6. f4 {[%clk 0:03:02.4]} 6... Qb6 {[%clk
0:03:02.3]} 7. Qb3 {[%clk 0:03:02.7]} 7... e6 {[%clk 0:03:01.3]} 8. Bxf6 {[%clk
0:03:01]} 8... Nxf6 {[%clk 0:02:53.4]} 9. h3 {[%clk 0:03:01.1]} 9... h5 {[%clk
0:02:50]} 10. Ngf3 {[%clk 0:02:50.8]} 10... h4 {[%clk 0:02:50.8]} 11. Ne5 {[%clk
0:02:47.4]} 11... Be7 {[%clk 0:02:47.6]} 12. Bd3 {[%clk 0:02:46.9]} 12... Bxd3
{[%clk 0:02:45.6]} 13. Nxd3 {[%clk 0:02:47.5]} 13... Nh5 {[%clk 0:02:46.2]} 14.
O-O {[%clk 0:02:47]} 14... Ng3 {[%clk 0:02:45.4]} 15. Rfe1 {[%clk 0:02:47.7]}
15... f5 {[%clk 0:02:39]} 16. Qc2 {[%clk 0:02:46.7]} 16... g5 {[%clk 0:02:38.9]}
17. fxg5 {[%clk 0:02:27.7]} 17... Bxg5 {[%clk 0:02:39.3]} 18. Nf4 {[%clk
0:02:23.1]} 18... Kd7 {[%clk 0:02:37.7]} 19. Nf3 {[%clk 0:02:23.4]} 19... Rag8
{[%clk 0:02:36.7]} 20. Ne5+ {[%clk 0:02:17.4]} 20... Kd6 {[%clk 0:02:37.9]} 21.
Nf7+ {[%clk 0:02:11]} 21... Kd7 {[%clk 0:02:35.9]} 22. Nxh8 {[%clk 0:02:07.6]}
22... Rxh8 {[%clk 0:02:37.1]} 23. Ng6 {[%clk 0:02:06.5]} 23... Rg8 {[%clk
0:02:36.9]} 24. Ne5+ {[%clk 0:02:03.7]} 24... Ke7 {[%clk 0:02:38.2]} 25. Nf3
{[%clk 0:01:59]} 25... Bf6 {[%clk 0:02:38.6]} 26. c4 {[%clk 0:01:58.5]} 26...
Ne4 {[%clk 0:02:37]} 27. cxd5 {[%clk 0:01:57.8]} 27... exd5 {[%clk 0:02:38.1]}
28. Nd2 {[%clk 0:01:53.6]} 28... Nd6 {[%clk 0:02:31.7]} 29. Rf1 {[%clk
0:01:50.9]} 29... Ke6 {[%clk 0:02:30.5]} 30. Kh1 {[%clk 0:01:51.3]} 30... Rg3
{[%clk 0:02:30]} 31. Rf3 {[%clk 0:01:51.8]} 31... Qd8 {[%clk 0:02:03.9]} 32.
Rxg3 {[%clk 0:01:46.4]} 32... hxg3 {[%clk 0:02:04.7]} 33. Rf1 {[%clk 0:01:46.5]}
33... Qg8 {[%clk 0:01:50.4]} 34. Rf3 {[%clk 0:01:47.5]} 34... Bd8 {[%clk
0:01:43.6]} 35. Qd1 {[%clk 0:01:45.9]} 35... Bc7 {[%clk 0:01:43.7]} 36. Qe1
{[%clk 0:01:46.3]} 36... Nf7 {[%clk 0:01:43.1]} 37. Qf1 {[%clk 0:01:46]} 37...
Nd6 {[%clk 0:01:37]} 38. Qd3 {[%clk 0:01:45.3]} 38... Qg5 {[%clk 0:01:33.7]} 39.
Kg1 {[%clk 0:01:45.9]} 39... Nf7 {[%clk 0:01:22.6]} 40. Qe2 {[%clk 0:01:44.4]}
40... Qg6 {[%clk 0:01:21.9]} 41. Rf1 {[%clk 0:01:41.4]} 41... Ng5 {[%clk
0:01:21.6]} 42. Qd3 {[%clk 0:01:40.8]} 42... Qh7 {[%clk 0:01:21.2]} 43. Nf3
{[%clk 0:01:39]} 43... Nf7 {[%clk 0:01:18.4]} 44. Nh4 {[%clk 0:01:33.4]} 44...
Nd6 {[%clk 0:01:19.1]} 45. Nf3 {[%clk 0:01:30.8]} 45... Nf7 {[%clk 0:01:18.3]}
46. b4 {[%clk 0:01:30.3]} 46... a6 {[%clk 0:01:18.9]} 47. a4 {[%clk 0:01:31.1]}
47... Qh5 {[%clk 0:01:11.8]} 48. b5 {[%clk 0:01:31.3]} 48... axb5 {[%clk
0:01:12.7]} 49. axb5 {[%clk 0:01:32.4]} 49... Nd6 {[%clk 0:01:13.4]} 50. bxc6
{[%clk 0:01:33.1]} 50... bxc6 {[%clk 0:01:14.4]} 51. Nd2 {[%clk 0:01:32.5]}
51... Ba5 {[%clk 0:01:09.4]} 52. Nf3 {[%clk 0:01:30.8]} 52... Nc4 {[%clk
0:01:02.6]} 53. Ne5 {[%clk 0:01:20.7]} 53... Nxe5 {[%clk 0:01:02.1]} 54. dxe5
{[%clk 0:01:21.4]} 54... Qg5 {[%clk 0:00:56.1]} 55. Kh1 {[%clk 0:01:20]} 55...
Bb6 {[%clk 0:00:55.7]} 56. Rf3 {[%clk 0:01:20.3]} 56... Kxe5 {[%clk 0:00:54]}
57. Qc3+ {[%clk 0:01:16.7]} 57... Kd6 {[%clk 0:00:55]} 58. Qb4+ {[%clk
0:01:17.4]} 58... Bc5 {[%clk 0:00:56.1]} 59. Qb8+ {[%clk 0:01:18]} 59... Kd7
{[%clk 0:00:57.3]} 60. Qb7+ {[%clk 0:01:18.7]} 60... Kd6 {[%clk 0:00:58.7]} 61.
Qb8+ {[%clk 0:01:18.7]} 61... Kd7 {[%clk 0:00:59.8]} 62. Qxg3 {[%clk 0:01:16.9]}
62... Qf6 {[%clk 0:00:56.4]} 63. Qf4 {[%clk 0:01:13.7]} 63... Ke6 {[%clk
0:00:57.3]} 64. Rf1 {[%clk 0:01:12.5]} 64... Bd6 {[%clk 0:00:58]} 65. Qd4 {[%clk
0:01:05.3]} 65... Qg6 {[%clk 0:00:52]} 66. Rf3 {[%clk 0:00:59]} 66... c5 {[%clk
0:00:51.8]} 67. Qa4 {[%clk 0:00:57.5]} 67... c4 {[%clk 0:00:53]} 68. Kg1 {[%clk
0:00:54.1]} 68... Qg8 {[%clk 0:00:43.3]} 69. Qc2 {[%clk 0:00:53.8]} 69... Qg5
{[%clk 0:00:39.5]} 70. Kf1 {[%clk 0:00:51.1]} 70... Bc5 {[%clk 0:00:39.5]} 71.
Qc3 {[%clk 0:00:49.3]} 71... Bd6 {[%clk 0:00:40.2]} 72. Qh8 {[%clk 0:00:47.5]}
72... Qg6 {[%clk 0:00:40.1]} 73. Qc8+ {[%clk 0:00:46.8]} 73... Ke5 {[%clk
0:00:41.5]} 74. Qh8+ {[%clk 0:00:40.7]} 74... Ke6 {[%clk 0:00:41.8]} 75. Qd4
{[%clk 0:00:40.1]} 75... Be5 {[%clk 0:00:34.8]} 76. Qb6+ {[%clk 0:00:39.6]}
76... Bd6 {[%clk 0:00:36]} 77. Qc6 {[%clk 0:00:40.5]} 77... Qg8 {[%clk 0:00:35]}
78. Rf2 {[%clk 0:00:36.3]} 78... Qb8 {[%clk 0:00:34.5]} 79. Rd2 {[%clk
0:00:31.7]} 79... Qb1+ {[%clk 0:00:27.3]} 80. Kf2 {[%clk 0:00:31.9]} 80... Qe4
{[%clk 0:00:27.4]} 81. Qe8+ {[%clk 0:00:31.2]} 81... Be7 {[%clk 0:00:28.7]} 82.
Qg6+ {[%clk 0:00:30.5]} 82... Bf6 {[%clk 0:00:29.6]} 83. Qg8+ {[%clk 0:00:31.3]}
83... Ke7 {[%clk 0:00:27.7]} 84. Qxd5 {[%clk 0:00:24.7]} 84... Bh4+ {[%clk
0:00:21.5]} 85. Kf1 {[%clk 0:00:20.7]} 85... Qb1+ {[%clk 0:00:22.2]} 86. Rd1
{[%clk 0:00:21.6]} 86... Qc2 {[%clk 0:00:23.3]} 87. Qd7+ {[%clk 0:00:22.1]}
87... Kf8 {[%clk 0:00:24.5]} 88. Qc8+ {[%clk 0:00:21.9]} 88... Kf7 {[%clk
0:00:25.8]} 89. Qd7+ {[%clk 0:00:20]} 89... Kf8 {[%clk 0:00:26.7]} 90. Qd6+
{[%clk 0:00:20.9]} 90... Kg7 {[%clk 0:00:27.9]} 91. Qe5+ {[%clk 0:00:20.8]}
91... Bf6 {[%clk 0:00:27.5]} 92. Rd7+ {[%clk 0:00:20.6]} 92... Kg6 {[%clk
0:00:29.1]} 93. Qe8+ {[%clk 0:00:21.4]} 93... Kg5 {[%clk 0:00:30]} 94. Qg8+
{[%clk 0:00:21.6]} 94... Bg7 {[%clk 0:00:28.5]} 95. Qxg7+ {[%clk 0:00:20.2]}
95... Kh4 {[%clk 0:00:29.2]} 96. Rd4+ {[%clk 0:00:18.2]} 96... f4 {[%clk
0:00:29]} 97. Rxf4+ {[%clk 0:00:18.5]} 97... Kh5 {[%clk 0:00:30.5]} 98. Qg4+
{[%clk 0:00:17.6]} 98... Kh6 {[%clk 0:00:31]} 99. Rf6+ {[%clk 0:00:18.3]} 99...
Kh7 {[%clk 0:00:32.5]} 100. Qh5+ {[%clk 0:00:19.5]} 100... Kg7 {[%clk
0:00:33.6]} 101. Qg5+ {[%clk 0:00:20.6]} 101... Kh7 {[%clk 0:00:34.9]} 102. Rh6#
{[%clk 0:00:21.7]} 1-0

[Event "*** Titled Tuesday Blitz"]
[Site "Chess.com"]
[Date "2018.11.06"]
[Round "9"]
[White "BillForster"]
[Black "WorldChampionBulletChess"]
[Result "1-0"]
[WhiteElo "1726"]
[BlackElo "2075"]
[TimeControl "180+2"]
[EndTime "15:00:35 PST"]
[Termination "BillForster won by resignation"]

1. d4 {[%clk 0:03:01.9]} 1... Nf6 {[%clk 0:03:00.5]} 2. c4 {[%clk 0:03:02]} 2...
e6 {[%clk 0:03:02.2]} 3. Nc3 {[%clk 0:03:02.3]} 3... b6 {[%clk 0:03:03.6]} 4. e4
{[%clk 0:03:00.8]} 4... Bb4 {[%clk 0:03:02.1]} 5. Bd3 {[%clk 0:02:58.6]} 5...
Bb7 {[%clk 0:03:02.1]} 6. Qe2 {[%clk 0:02:56.5]} 6... Bxc3+ {[%clk 0:03:02.7]}
7. bxc3 {[%clk 0:02:56.4]} 7... O-O {[%clk 0:03:02.1]} 8. f4 {[%clk 0:02:53.4]}
8... d5 {[%clk 0:03:01.6]} 9. e5 {[%clk 0:02:51.4]} 9... Ne4 {[%clk 0:03:02.7]}
10. Bd2 {[%clk 0:02:38.5]} 10... Nd7 {[%clk 0:03:00.6]} 11. Nf3 {[%clk
0:02:37.2]} 11... c5 {[%clk 0:03:01.3]} 12. O-O {[%clk 0:02:28.4]} 12... Rc8
{[%clk 0:02:20.8]} 13. Ng5 {[%clk 0:02:26.6]} 13... Nxd2 {[%clk 0:02:19.3]} 14.
Bxh7+ {[%clk 0:02:19.7]} 14... Kh8 {[%clk 0:02:20.1]} 15. Qh5 {[%clk 0:01:52.1]}
15... Re8 {[%clk 0:02:01.7]} 1-0

[Event "*** Titled Tuesday Blitz"]
[Site "Chess.com"]
[Date "2018.11.06"]
[Round "9"]
[White "Manukyan_Artak"]
[Black "colegiodemadrid"]
[Result "1-0"]
[WhiteElo "2439"]
[BlackElo "2237"]
[TimeControl "180+2"]
[EndTime "15:01:25 PST"]
[Termination "Manukyan_Artak won by resignation"]

1. e4 {[%clk 0:03:01.9]} 1... c5 {[%clk 0:03:00.4]} 2. Nf3 {[%clk 0:03:02.5]}
2... d6 {[%clk 0:03:01.8]} 3. Bb5+ {[%clk 0:03:02.8]} 3... Nc6 {[%clk
0:03:01.9]} 4. O-O {[%clk 0:03:02.2]} 4... Bd7 {[%clk 0:03:02.6]} 5. c3 {[%clk
0:03:02.5]} 5... Nf6 {[%clk 0:03:03.6]} 6. Re1 {[%clk 0:03:03.3]} 6... a6 {[%clk
0:03:04.2]} 7. Bxc6 {[%clk 0:03:03.1]} 7... Bxc6 {[%clk 0:03:05.1]} 8. e5 {[%clk
0:03:04.7]} 8... dxe5 {[%clk 0:03:01.5]} 9. Nxe5 {[%clk 0:03:05.9]} 9... Qc7
{[%clk 0:03:00.1]} 10. d4 {[%clk 0:03:05.5]} 10... cxd4 {[%clk 0:03:00.9]} 11.
cxd4 {[%clk 0:03:06.6]} 11... e6 {[%clk 0:02:59.3]} 12. Bg5 {[%clk 0:03:00.9]}
12... Be7 {[%clk 0:03:00.3]} 13. Nxc6 {[%clk 0:02:47.2]} 13... Qxc6 {[%clk
0:03:00.7]} 14. Bxf6 {[%clk 0:02:44.8]} 14... Bxf6 {[%clk 0:03:01.9]} 15. d5
{[%clk 0:02:46.1]} 15... Qd7 {[%clk 0:02:57.4]} 16. Nc3 {[%clk 0:02:40]} 16...
O-O {[%clk 0:02:49.9]} 17. dxe6 {[%clk 0:02:38.7]} 17... Qxd1 {[%clk 0:02:50.4]}
18. exf7+ {[%clk 0:02:39]} 18... Rxf7 {[%clk 0:02:49.5]} 19. Raxd1 {[%clk
0:02:40.8]} 19... Rc7 {[%clk 0:02:50.9]} 20. Nd5 {[%clk 0:02:38.5]} 20... Rc2
{[%clk 0:02:52.2]} 21. Nxf6+ {[%clk 0:02:37.8]} 21... gxf6 {[%clk 0:02:53.5]}
22. Re7 {[%clk 0:02:36.3]} 22... Rxb2 {[%clk 0:02:48]} 23. h4 {[%clk 0:02:37.3]}
23... Rc8 {[%clk 0:02:43.4]} 24. Rdd7 {[%clk 0:02:34.1]} 24... b5 {[%clk
0:02:40.9]} 25. Rg7+ {[%clk 0:02:32.3]} 25... Kf8 {[%clk 0:02:42.2]} 26. Rxh7
{[%clk 0:02:33.4]} 26... Kg8 {[%clk 0:02:41.7]} 27. Rdg7+ {[%clk 0:02:28]} 27...
Kf8 {[%clk 0:02:42.3]} 28. Rb7 {[%clk 0:02:07.4]} 28... Kg8 {[%clk 0:02:42.2]}
29. Rbg7+ {[%clk 0:02:07.5]} 29... Kf8 {[%clk 0:02:43.1]} 30. Ra7 {[%clk
0:02:07.8]} 30... Kg8 {[%clk 0:02:43.8]} 31. h5 {[%clk 0:02:02.7]} 31... Rc1+
{[%clk 0:02:32.5]} 32. Kh2 {[%clk 0:02:03.7]} 32... Rxf2 {[%clk 0:02:33.3]} 33.
Rag7+ {[%clk 0:02:04.4]} 33... Kf8 {[%clk 0:02:34.4]} 34. h6 {[%clk 0:02:04.8]}
1-0

[Event "*** Titled Tuesday Blitz"]
[Site "Chess.com"]
[Date "2018.11.06"]
[Round "9"]
[White "DonPreuss"]
[Black "Karina_Oparina"]
[Result "1-0"]
[WhiteElo "2135"]
[BlackElo "2172"]
[TimeControl "180+2"]
[EndTime "15:02:09 PST"]
[Termination "DonPreuss won by checkmate"]

1. d4 {[%clk 0:03:01.9]} 1... Nf6 {[%clk 0:02:59.9]} 2. Nc3 {[%clk 0:03:02.4]}
2... d5 {[%clk 0:02:59.9]} 3. e4 {[%clk 0:03:03.8]} 3... Nxe4 {[%clk 0:02:59.3]}
4. Nxe4 {[%clk 0:03:04.5]} 4... dxe4 {[%clk 0:03:00.3]} 5. Bc4 {[%clk
0:03:05.8]} 5... Nd7 {[%clk 0:02:53.5]} 6. c3 {[%clk 0:03:01.3]} 6... Nf6 {[%clk
0:02:52.7]} 7. f3 {[%clk 0:02:58.4]} 7... e6 {[%clk 0:02:49.6]} 8. Qe2 {[%clk
0:02:57.1]} 8... exf3 {[%clk 0:02:41.8]} 9. Nxf3 {[%clk 0:02:59]} 9... Bd6
{[%clk 0:02:40.8]} 10. O-O {[%clk 0:02:58.6]} 10... O-O {[%clk 0:02:41.2]} 11.
Bd3 {[%clk 0:02:56.9]} 11... c5 {[%clk 0:02:38.1]} 12. Qf2 {[%clk 0:02:45.2]}
12... cxd4 {[%clk 0:02:36.6]} 13. Qh4 {[%clk 0:02:46]} 13... Be7 {[%clk
0:02:22.4]} 14. Bg5 {[%clk 0:02:44.7]} 14... g6 {[%clk 0:02:16.2]} 15. c4 {[%clk
0:02:12.8]} 15... Re8 {[%clk 0:01:58.3]} 16. Ne5 {[%clk 0:02:10]} 16... Nd5
{[%clk 0:01:27.1]} 17. Rxf7 {[%clk 0:02:06.5]} 17... h5 {[%clk 0:01:21.1]} 18.
Bxg6 {[%clk 0:02:05.1]} 18... Bxg5 {[%clk 0:01:17]} 19. Qxh5 {[%clk 0:02:05.3]}
19... Nf6 {[%clk 0:01:08.3]} 20. Bh7+ {[%clk 0:01:38.7]} 20... Kh8 {[%clk
0:01:03.7]} 21. Ng6# {[%clk 0:01:37.9]} 1-0

[Event "*** Titled Tuesday Blitz"]
[Site "Chess.com"]
[Date "2018.11.06"]
[Round "9"]
[White "Muisback26"]
[Black "Lovkov_Roman"]
[Result "1-0"]
[WhiteElo "2812"]
[BlackElo "2630"]
[TimeControl "180+2"]
[EndTime "15:02:33 PST"]
[Termination "Muisback26 won by resignation"]

1. e4 {[%clk 0:03:01.6]} 1... c6 {[%clk 0:03:00.5]} 2. Ne2 {[%clk 0:03:02.5]}
2... d5 {[%clk 0:03:00.5]} 3. e5 {[%clk 0:03:03.7]} 3... c5 {[%clk 0:02:56.7]}
4. d4 {[%clk 0:03:04.2]} 4... Nc6 {[%clk 0:02:57.5]} 5. c3 {[%clk 0:03:04.5]}
5... Bf5 {[%clk 0:02:39]} 6. dxc5 {[%clk 0:03:04.7]} 6... e6 {[%clk 0:02:36.2]}
7. b4 {[%clk 0:03:05.1]} 7... a5 {[%clk 0:02:29.8]} 8. Nd4 {[%clk 0:03:02.4]}
8... Bg6 {[%clk 0:01:58]} 9. Bb5 {[%clk 0:03:01.8]} 9... Qc7 {[%clk 0:01:55.7]}
10. O-O {[%clk 0:03:01.5]} 10... Ne7 {[%clk 0:01:47.8]} 11. Re1 {[%clk
0:03:01.8]} 11... Bxb1 {[%clk 0:01:26.2]} 12. Rxb1 {[%clk 0:03:01.1]} 12... g6
{[%clk 0:01:26.5]} 13. Bg5 {[%clk 0:02:59.3]} 13... Bg7 {[%clk 0:01:27.7]} 14.
Bf6 {[%clk 0:02:48.8]} 14... O-O {[%clk 0:01:26.7]} 15. Qf3 {[%clk 0:02:43.2]}
15... Nxd4 {[%clk 0:01:21.3]} 16. cxd4 {[%clk 0:02:42.3]} 16... Nf5 {[%clk
0:01:22.7]} 17. Bxg7 {[%clk 0:02:43.2]} 17... Kxg7 {[%clk 0:01:22.9]} 18. Bd3
{[%clk 0:02:39]} 18... Nxd4 {[%clk 0:01:16.1]} 19. Qf4 {[%clk 0:02:38]} 19...
Nc6 {[%clk 0:01:06.3]} 20. Re3 {[%clk 0:02:32.7]} 20... Qe7 {[%clk 0:00:49.5]}
21. b5 {[%clk 0:02:30.7]} 21... Nb4 {[%clk 0:00:48.8]} 22. Be2 {[%clk
0:02:29.8]} 22... Rac8 {[%clk 0:00:39]} 23. a3 {[%clk 0:02:27.5]} 23... Nc2
{[%clk 0:00:37.9]} 24. Rc3 {[%clk 0:02:28]} 1-0

[Event "*** Titled Tuesday Blitz"]
[Site "Chess.com"]
[Date "2018.11.06"]
[Round "9"]
[White "Kawhi_Leonard2"]
[Black "tomozupan"]
[Result "1-0"]
[WhiteElo "2291"]
[BlackElo "2170"]
[TimeControl "180+2"]
[EndTime "15:02:59 PST"]
[Termination "Kawhi_Leonard2 won by resignation"]

1. e4 {[%clk 0:03:01.9]} 1... e5 {[%clk 0:02:59.3]} 2. Nf3 {[%clk 0:03:02.8]}
2... Nc6 {[%clk 0:02:59]} 3. Bb5 {[%clk 0:03:04.4]} 3... Nge7 {[%clk 0:02:59]}
4. c3 {[%clk 0:03:03.4]} 4... g6 {[%clk 0:02:59.1]} 5. d4 {[%clk 0:03:04.2]}
5... exd4 {[%clk 0:02:59.4]} 6. cxd4 {[%clk 0:03:04.8]} 6... Bg7 {[%clk
0:02:58.5]} 7. O-O {[%clk 0:03:04.8]} 7... a6 {[%clk 0:02:59]} 8. Ba4 {[%clk
0:03:04.1]} 8... b5 {[%clk 0:02:59.5]} 9. Bb3 {[%clk 0:03:02.5]} 9... d6 {[%clk
0:03:00.1]} 10. h3 {[%clk 0:03:01.7]} 10... O-O {[%clk 0:03:00.2]} 11. Nc3
{[%clk 0:03:01.8]} 11... h6 {[%clk 0:02:56.2]} 12. Re1 {[%clk 0:03:02.6]} 12...
Na5 {[%clk 0:02:56.3]} 13. Bc2 {[%clk 0:03:02.8]} 13... c5 {[%clk 0:02:56.8]}
14. Bf4 {[%clk 0:02:55.5]} 14... Nc4 {[%clk 0:02:31.1]} 15. b3 {[%clk
0:02:56.1]} 15... Na3 {[%clk 0:02:31.4]} 16. Rc1 {[%clk 0:02:47.5]} 16... Nc6
{[%clk 0:01:55.8]} 17. Be3 {[%clk 0:02:35.9]} 17... c4 {[%clk 0:01:24]} 18. Nd5
{[%clk 0:02:10.3]} 18... Be6 {[%clk 0:01:09.5]} 19. Qd2 {[%clk 0:02:09.6]} 19...
Rc8 {[%clk 0:00:44]} 20. Bxh6 {[%clk 0:02:08.1]} 20... Nxc2 {[%clk 0:00:32.7]}
21. Rxc2 {[%clk 0:02:08.7]} 21... cxb3 {[%clk 0:00:31.5]} 22. axb3 {[%clk
0:02:09.9]} 22... Nxd4 {[%clk 0:00:28.9]} 23. Nxd4 {[%clk 0:01:58.8]} 23... Bxd5
{[%clk 0:00:17.1]} 24. exd5 {[%clk 0:01:59]} 24... Rxc2 {[%clk 0:00:13.2]} 25.
Nxc2 {[%clk 0:01:57.8]} 1-0